bitfinex/quotes_SOLUSD_20240718
["timestamp","ask_amount","ask_price","bid_price","bid_amount"]
[1721312553554,1.56267869,160.02,159.93,15.96268495]
[1721312553754,1.56264074,160.01,159.93,15.96268495]
[1721312554373,1.56264074,160.01,159.94,45.0]
[1721312554876,7.8118491,160.02,159.93,15.96268495]
[1721312555179,1.56257356,160.01,159.93,15.96268495]
[1721312555382,1.56254732,160.02,159.94,45.0]
[1721312555572,1.56253983,160.01,159.93,15.96268495]
[1721312556770,1.56293675,160.0,159.93,15.96268495]
[1721312557668,1.5629362,160.02,159.93,15.96268495]
[1721312557856,1.5629362,160.01,159.93,15.96268495]
[1721312558057,6.2505,159.99,159.93,15.96268495]
[1721312558260,1.56293584,159.98,159.93,15.96268495]
[1721312559285,1.56292583,159.99,159.93,15.96268495]
[1721312559453,1.56292554,159.98,159.93,15.96268495]
[1721312560373,1.56292554,159.98,159.88,10.0]
[1721312560374,1.56292625,159.99,159.88,16.3438]
[1721312560571,1.56307886,159.98,159.89,20.0]
[1721312561255,1.5629632,159.99,159.9,45.0]
[1721312562074,1.56283583,159.98,159.9,45.0]
[1721312562285,7.81283981,160.0,159.9,45.0]
[1721312562459,1.56283981,160.0,159.9,45.0]
[1721312563467,1.56278045,160.02,159.9,45.0]
[1721312563665,1.5627952,160.01,159.9,55.0]
[1721312563867,1.5627952,160.01,159.91,0.17]
[1721312564885,1.56265617,160.02,159.92,10.0]
[1721312565073,1.56265617,160.02,159.93,45.0]
[1721312565772,7.81205617,160.02,159.93,45.0]
[1721312565965,1.56250495,160.01,159.9,40.01]
[1721312566285,6.2502,160.0,159.91,20.0]
[1721312566489,1.56276277,159.99,159.91,65.0]
[1721312566783,1.56278898,159.98,159.91,65.0]
[1721312567160,7.81358898,159.98,159.91,65.0]
[1721312567486,1.56278898,159.98,159.89,0.17]
[1721312567683,1.56284024,159.99,159.9,10.17]
[1721312567890,1.56284024,159.99,159.91,45.0]
[1721312568183,1.56275772,159.98,159.88,26.3438]
[1721312568373,1.56275772,159.98,159.89,65.17]
[1721312569289,6.2501,160.0,159.89,20.0]
[1721312569290,6.2516,159.96,159.89,20.0]
[1721312569475,7.57735033,159.95,159.87,0.8372166]
[1721312569859,6.2526,159.94,159.87,0.8372166]
[1721312570173,1.56346106,159.93,159.87,0.8372166]
[1721312570374,6.2539,159.9,159.87,0.8372166]
[1721312570577,1.56387746,159.89,159.87,0.8372166]
[1721312570963,7.81817746,159.89,159.87,0.8372166]
[1721312571285,14.10478439,159.88,159.87,0.8372166]
[1721312571761,7.85018439,159.88,159.87,0.8372166]
[1721312572259,6.2863,159.88,159.87,0.8372166]
[1721312575389,12.6852,159.92,159.87,0.8372166]
[1721312575686,1.56355488,159.91,159.87,0.8372166]
[1721312576587,6.2542,159.9,159.87,0.8372166]
[1721312576789,1.56378466,159.89,159.87,0.8372166]
[1721312577478,6.254,159.9,159.87,0.8372166]
[1721312577681,1.56367533,159.89,159.87,0.8372166]
[1721312577984,1.56378594,159.89,159.87,0.8372166]
[1721312578874,6.2546,159.88,159.87,0.8372166]
[1721312579078,7.81818594,159.89,159.87,0.8372166]
[1721312579672,6.2546,159.88,159.87,0.8372166]
[1721312579872,6.2543,159.89,159.87,0.8372166]
[1721312580078,1.56392205,159.88,159.87,0.8372166]
[1721312580284,7.81852205,159.88,159.87,0.8372166]
[1721312580484,1.5638086,159.9,159.87,0.8372166]
[1721312580791,30.01,159.91,159.87,0.8372166]
[1721312580792,6.2546,159.88,159.87,0.8372166]
[1721312580973,1.56384081,159.89,159.87,0.8372166]
[1721312581577,1.56384184,159.9,159.87,0.8372166]
[1721312581797,7.8175051,159.91,159.87,0.8372166]
[1721312582089,1.5637051,159.91,159.87,0.8372166]
[1721312582291,6.2543,159.89,159.87,0.8372166]
[1721312582497,7.81836969,159.88,159.87,0.8372166]
[1721312588603,62.76796969,159.88,159.87,0.8372166]
[1721312588897,107.76796969,159.88,159.87,0.8372166]
[1721312589094,7.72336969,159.88,159.87,0.8372166]
[1721312589297,13.97796969,159.88,159.87,0.8372166]
[1721312590168,1.56412495,159.89,159.87,0.8372166]
[1721312590367,1.56383693,159.92,159.87,0.8372166]
[1721312591401,6.2546,159.88,159.87,0.8372166]
[1721312591580,1.56394887,159.91,159.87,0.8372166]
[1721312591893,25.0346,159.88,159.87,0.8372166]
[1721312592095,7.81888226,159.88,159.87,0.8372166]
[1721312592402,26.59888226,159.88,159.87,0.8372166]
[1721312593376,71.59888226,159.88,159.87,0.8372166]
[1721312593697,26.59888226,159.88,159.87,0.8372166]
[1721312594282,71.59888226,159.88,159.87,0.8372166]
[1721312595276,26.59888226,159.88,159.87,0.8372166]
[1721312595782,56.60888226,159.88,159.87,0.8372166]
[1721312597223,37.82888226,159.88,159.87,0.8372166]
[1721312597687,7.81888226,159.88,159.87,0.8372166]
[1721312598712,1.56407709,159.89,159.87,0.8372166]
[1721312598873,6.2542,159.9,159.87,0.8372166]
[1721312599219,1.56381574,159.89,159.87,0.8372166]
[1721312599527,1.56381573,159.91,159.87,0.8372166]
[1721312599799,7.81761573,159.91,159.87,0.8372166]
[1721312600509,6.2539,159.9,159.87,0.8372166]
[1721312600722,7.81818424,159.89,159.87,0.8372166]
[1721312601178,1.56388424,159.89,159.87,0.8372166]
[1721312601875,1.56380435,159.91,159.87,0.8372166]
[1721312602909,30.01,159.95,159.87,0.8372166]
[1721312602910,1.56354348,159.92,159.87,0.8372166]
[1721312603114,6.253,159.93,159.87,0.8372166]
[1721312603278,7.81665574,159.92,159.87,0.8372166]
[1721312603781,1.56355574,159.92,159.87,0.8372166]
[1721312603980,1.563541,159.91,159.87,0.8372166]
[1721312604494,7.817141,159.91,159.87,0.8372166]
[1721312604690,6.2539,159.9,159.87,0.8372166]
[1721312604878,1.56383145,159.89,159.87,0.8372166]
[1721312605998,1.56387393,159.88,159.87,0.8372166]
[1721312606808,1.56383467,159.9,159.87,0.8372166]
[1721312607019,1.56373609,159.91,159.87,0.8372166]
[1721312607193,7.81621094,159.94,159.87,0.8372166]
[1721312607615,6.2527,159.93,159.87,0.8372166]
[1721312607818,1.56354299,159.92,159.87,0.8372166]
[1721312608118,1.56354262,159.93,159.87,0.8372166]
[1721312608289,1.56342522,159.92,159.87,0.8372166]
[1721312608606,1.56346443,159.94,159.87,0.8372166]
[1721312608978,1.56353351,159.96,159.87,0.8372166]
[1721312609414,1.56307065,159.97,159.89,6.2623]
[1721312609584,1.56296576,160.0,159.89,6.2623]
[1721312610298,7.81326576,160.0,159.89,6.2623]
[1721312610709,6.2504,159.99,159.89,6.2623]
[1721312610886,1.56291677,159.98,159.89,6.2623]
[1721312611992,7.81371677,159.98,159.89,6.2623]
[1721312612192,1.56296862,159.97,159.89,6.2623]
[1721312612382,6.2523,159.94,159.88,16.0336]
[1721312612578,1.56336673,159.93,159.88,16.0336]
[1721312613494,1.56335923,159.94,159.88,16.0336]
[1721312613691,6.2531,159.92,159.88,16.0336]
[1721312613899,18.78,159.96,159.88,16.0336]
[1721312613900,1.56358402,159.91,159.88,16.0336]
[1721312614116,6.2535,159.91,159.88,16.0336]
[1721312614420,1.56365208,159.9,159.87,0.8372166]
[1721312614722,6.2531,159.92,159.87,0.8372166]
[1721312615030,1.56349414,159.94,159.88,0.50282835]
[1721312615231,7.81589414,159.94,159.88,0.50282835]
[1721312615385,1.56334734,159.97,159.88,0.50282835]
[1721312615793,7.81474734,159.97,159.88,0.50282835]
[1721312616506,1.56315841,159.96,159.88,0.50282835]
[1721312616816,7.81485841,159.96,159.88,0.50282835]
[1721312617027,1.56315841,159.96,159.88,0.50282835]
[1721312617200,1.56316069,159.99,159.88,0.50282835]
[1721312617401,7.81404531,159.98,159.88,0.50282835]
[1721312617597,6.2511,159.97,159.88,0.50282835]
[1721312617904,1.56316088,159.96,159.88,0.50282835]
[1721312618105,1.56337908,159.95,159.87,0.8372166]
[1721312618428,6.2536,159.91,159.87,0.8372166]
[1721312618600,7.81764068,159.9,159.87,0.8372166]
[1721312618798,1.56374551,159.89,159.87,0.8372166]
[1721312619314,7.81824551,159.89,159.87,0.8372166]
[1721312619726,7.81853499,159.88,159.87,0.8372166]
[1721312620098,1.56393499,159.88,159.87,0.8372166]
[1721312620307,6.2541,159.9,159.87,0.8372166]
[1721312620504,7.81826994,159.89,159.87,0.8372166]
[1721312621712,1.56396994,159.89,159.87,0.8372166]
[1721312621923,1.56392918,159.88,159.87,0.8372166]
[1721312622730,7.81852918,159.88,159.87,0.8372166]
[1721312623199,1.56392918,159.88,159.87,0.8372166]
[1721312623401,1.56390149,159.9,159.87,0.8372166]
[1721312623603,1.56390213,159.89,159.87,0.8372166]
[1721312623912,7.81830213,159.89,159.87,0.8372166]
[1721312624627,6.2546,159.88,159.87,0.8372166]
[1721312624929,20.34390213,159.89,159.87,0.8372166]
[1721312624930,1.56390213,159.89,159.87,0.8372166]
[1721312626004,1.56370873,159.92,159.87,0.8372166]
[1721312626941,7.81680873,159.92,159.87,0.8372166]
[1721312627234,6.2537,159.91,159.87,0.8372166]
[1721312627442,6.2543,159.89,159.87,0.8372166]
[1721312627737,1.56392363,159.88,159.87,0.8372166]
[1721312627947,1.56396554,159.9,159.87,0.8372166]
[1721312628126,1.56369277,159.92,159.87,0.8372166]
[1721312628917,61.2247,160.0,159.87,0.8372166]
[1721312628918,1.56349459,159.95,159.88,0.50282943]
[1721312630431,7.81549459,159.95,159.88,0.50282943]
[1721312630742,7.81575251,159.94,159.88,0.50282943]
[1721312631836,20.34335251,159.94,159.87,0.8372166]
[1721312632134,25.035,159.87,159.86,1.172967]
[1721312632312,71.59956388,159.87,159.86,1.172967]
[1721312632508,91.09956388,159.87,159.86,1.172967]
[1721312632741,46.09956388,159.87,159.86,1.172967]
[1721312633111,48.60647088,159.87,159.86,1.172967]
[1721312635551,28.60647088,159.87,159.86,1.172967]
[1721312636052,48.60647088,159.87,159.86,1.172967]
[1721312636347,7.81956388,159.87,159.86,1.172967]
[1721312636531,26.59956388,159.87,159.86,1.172967]
[1721312638430,71.59956388,159.87,159.86,1.172967]
[1721312638636,91.59956388,159.87,159.86,1.172967]
[1721312638827,71.59956388,159.87,159.86,1.172967]
[1721312639034,91.59956388,159.87,159.86,1.172967]
[1721312639450,98.0043441,159.87,159.86,1.172967]
[1721312640248,98.0043441,159.87,159.86,6.7e-05]
[1721312640443,104.8349416,159.87,159.86,6.7e-05]
[1721312641248,89.8349416,159.87,159.86,6.7e-05]
[1721312641422,134.8349416,159.87,159.86,6.7e-05]
[1721312642453,134.9666416,159.87,159.7,10.8372166]
[1721312642746,6.2613,159.71,159.7,1.66e-05]
[1721312643142,1.56570274,159.72,159.7,1.66e-05]
[1721312643331,6.3867,159.78,159.7,1.66e-05]
[1721312643332,1.56562032,159.77,159.7,1.66e-05]
[1721312643535,1.56545955,159.76,159.7,1.66e-05]
[1721312643733,1.56545955,159.76,159.63,5.37024535]
[1721312644174,18.78,159.75,159.63,5.37024535]
[1721312644338,6.2609,159.72,159.66,6.2632]
[1721312644535,7.82692434,159.71,159.65,6.2636]
[1721312644735,1.56562434,159.71,159.63,5.37024535]
[1721312644958,6.2629,159.68,159.62,22.5817]
[1721312645268,7.82671605,159.73,159.67,6.2626]
[1721312645445,1.56543757,159.72,159.67,6.2626]
[1721312645767,1.5654379,159.76,159.62,16.3169]
[1721312645961,1.5654379,159.76,159.72,6.2607]
[1721312646155,20.34512075,159.81,159.71,6.2612]
[1721312646373,6.2602,159.74,159.63,30.0]
[1721312646657,18.78,159.79,159.63,30.0]
[1721312646658,1.56538896,159.73,159.69,6.262]
[1721312646966,18.78,159.79,159.67,6.2628]
[1721312646967,1.56545598,159.78,159.67,6.2628]
[1721312647266,18.78,159.77,159.68,6.2625]
[1721312647558,1.56542354,159.76,159.68,6.2625]
[1721312647949,6.2605,159.74,159.68,6.2625]
[1721312648147,15.6454,159.8,159.69,6.262]
[1721312648148,1.56527064,159.73,159.69,6.262]
[1721312648349,1.56527064,159.73,159.68,6.2624]
[1721312648562,1.56527064,159.73,159.63,26.5795]
[1721312649050,1.5654733,159.74,159.69,6.2621]
[1721312649237,1.56541639,159.73,159.69,6.2621]
[1721312649861,1.56541639,159.73,159.67,6.2626]
[1721312650068,1.56541639,159.73,159.68,6.2624]
[1721312651075,1.56541639,159.73,159.67,6.2629]
[1721312651076,6.261,159.72,159.67,6.2629]
[1721312651259,1.565618,159.71,159.66,6.2629]
[1721312651577,1.56561831,159.72,159.63,6.5795]
[1721312651805,1.56561831,159.76,159.63,6.5795]
[1721312652454,6.2601,159.74,159.63,6.5795]
[1721312652679,1.56536877,159.73,159.68,6.2622]
[1721312652891,1.56536877,159.73,159.63,6.5795]
[1721312653051,1.56531151,159.75,159.64,45.17]
[1721312653579,7.82511151,159.75,159.69,6.2617]
[1721312653787,1.56531151,159.75,159.71,6.2613]
[1721312654081,6.2593,159.76,159.64,55.0]
[1721312654082,1.5651466,159.76,159.73,6.2605]
[1721312654392,6.2581,159.8,159.74,6.2601]
[1721312654677,6.2586,159.78,159.72,6.2608]
[1721312654868,1.56499019,159.77,159.72,6.2608]
[1721312655259,1.56498945,159.76,159.72,6.2608]
[1721312655459,7.82408936,159.77,159.72,6.2608]
[1721312655661,1.56508815,159.76,159.65,10.0]
[1721312655861,1.56508815,159.76,159.66,65.17]
[1721312656780,6.2582,159.79,159.66,65.17]
[1721312656979,1.56500719,159.78,159.67,10.0]
[1721312657154,1.56500719,159.78,159.68,65.0]
[1721312658370,1.56500719,159.78,159.68,20.0]
[1721312658371,20.34500719,159.78,159.68,20.0]
[1721312658570,18.78,159.75,159.63,6.5795]
[1721312658772,1.5655307,159.74,159.63,16.5795]
[1721312658956,1.56537849,159.73,159.63,16.5795]
[1721312659572,1.56537849,159.73,159.63,6.5795]
[1721312660087,1.56543286,159.72,159.68,6.2623]
[1721312660385,7.82603843,159.73,159.68,6.2623]
[1721312660586,7.82603843,159.73,159.63,6.5795]
[1721312660958,1.56543843,159.73,159.63,6.5795]
[1721312661183,1.56544283,159.74,159.63,16.5795]
[1721312661485,6.2577,159.81,159.75,6.2597]
[1721312661691,1.56495517,159.8,159.75,6.2597]
[1721312662186,6.2584,159.79,159.67,10.0]
[1721312662491,6.2584,159.79,159.73,6.2602]
[1721312662492,1.56491168,159.78,159.73,6.2602]
[1721312662674,7.82351168,159.78,159.73,6.2602]
[1721312662869,6.259,159.77,159.68,65.0]
[1721312663183,1.56496532,159.77,159.68,65.0]
[1721312663586,1.56491029,159.78,159.68,65.0]
[1721312664470,7.82351029,159.78,159.68,65.0]
[1721312664670,1.56507434,159.77,159.68,65.0]
[1721312664975,1.56502359,159.8,159.69,10.0]
[1721312665173,1.56478088,159.79,159.7,45.0]
[1721312666091,1.56478016,159.8,159.7,45.0]
[1721312666385,1.56478058,159.8,159.7,61.3647]
[1721312666591,1.56462736,159.81,159.71,20.17]
[1721312666780,1.56462736,159.81,159.72,45.0]
[1721312666965,7.92501216,159.83,159.72,45.0]
[1721312667172,1.56441304,159.84,159.73,30.17]
[1721312667493,36.2212,159.87,159.75,10.0]
[1721312667494,1.56422413,159.85,159.75,10.0]
[1721312667696,1.5641381,159.86,159.76,45.0]
[1721312667902,1.5641413,159.85,159.76,45.0]
[1721312668369,18.78,159.89,159.76,45.0]
[1721312668370,1.56414348,159.86,159.77,15.5426]
[1721312668570,1.56414348,159.86,159.78,45.0]
[1721312668772,6.2544,159.89,159.78,45.0]
[1721312668962,1.56396848,159.88,159.78,45.0]
[1721312669392,48.92,159.91,159.78,45.0]
[1721312669393,1.56396725,159.9,159.8,10.0]
[1721312669686,6.2549,159.88,159.72,263.1]
[1721312669894,1.56412865,159.87,159.73,20.0]
[1721312670103,31.70412865,159.87,159.73,20.0]
[1721312670411,6.2566,159.83,159.73,20.0]
[1721312670594,1.5645573,159.82,159.72,10.0]
[1721312670791,6.2562,159.85,159.73,20.0]
[1721312671000,1.56445057,159.84,159.73,20.0]
[1721312671289,1.56429397,159.87,159.76,10.0]
[1721312671592,1.56429397,159.87,159.77,15.6721]
[1721312671805,7.81828937,159.89,159.77,15.6721]
[1721312672178,7.81828937,159.89,159.78,45.0]
[1721312672385,1.56398937,159.89,159.78,45.0]
[1721312672709,6.2539,159.9,159.78,55.0]
[1721312672900,1.56386449,159.89,159.78,55.0]
[1721312673406,1.56374351,159.9,159.79,0.17]
[1721312673585,1.56374465,159.89,159.79,0.17]
[1721312673794,1.56374465,159.89,159.78,45.0]
[1721312673981,25.1805,159.92,159.78,45.0]
[1721312673982,6.2542,159.9,159.79,10.0]
[1721312674183,1.56378322,159.89,159.8,45.0]
[1721312674412,1.56372499,159.91,159.8,45.0]
[1721312675114,7.81732499,159.91,159.8,45.0]
[1721312675280,6.2539,159.9,159.8,45.0]
[1721312675483,1.56378843,159.89,159.8,45.0]
[1721312675900,7.81808843,159.89,159.77,25.6721]
[1721312676101,6.2546,159.88,159.78,20.0]
[1721312676406,1.56410726,159.87,159.78,20.0]
[1721312677003,1.56410727,159.91,159.78,30.0]
[1721312677407,1.56410727,159.91,159.79,0.17]
[1721312677613,7.81760727,159.91,159.79,0.17]
[1721312677815,7.81760727,159.91,159.79,45.17]
[1721312679191,1.56410727,159.91,159.79,45.17]
[1721312679400,1.56374216,159.95,159.85,10.0]
[1721312679690,1.56374216,159.95,159.81,33.89]
[1721312679691,1.56374216,159.95,159.84,10.17]
[1721312679912,1.56374216,159.95,159.85,45.0]
[1721312680993,1.56374216,159.95,159.85,55.0]
[1721312681196,1.56374216,159.95,159.86,16.5021]
[1721312681388,1.56374216,159.95,159.87,45.0]
[1721312682210,1.56374216,159.95,159.86,16.5021]
[1721312683194,7.81574216,159.95,159.86,16.5021]
[1721312683395,1.56374216,159.95,159.86,16.5021]
[1721312687120,33.9557,159.94,159.8,10.0]
[1721312687420,33.9557,159.94,159.75,10.0]
[1721312687421,6.2558,159.86,159.75,10.0]
[1721312687619,6.2569,159.83,159.74,15.7235]
[1721312687923,6.2563,159.84,159.74,25.7235]
[1721312688104,1.56428013,159.84,159.74,15.7235]
[1721312688427,7.82058013,159.84,159.74,15.7235]
[1721312688722,1.56428013,159.84,159.74,15.7235]
[1721312689699,12.4027,159.85,159.74,15.7235]
[1721312689700,6.1468,159.85,159.75,10.0]
[1721312689916,7.7109698,159.85,159.75,10.0]
[1721312690126,7.7109698,159.85,159.76,45.0]
[1721312690407,6.1468,159.85,159.76,45.0]
[1721312691111,6.1468,159.85,159.77,10.17]
[1721312691313,6.1468,159.85,159.78,45.0]
[1721312692927,7.71082993,159.85,159.77,0.17]
[1721312693102,7.82076731,159.84,159.76,45.0]
[1721312693304,6.2573,159.82,159.74,15.7235]
[1721312693519,1.5645627,159.81,159.74,15.7235]
[1721312693829,6.2582,159.79,159.7,15.9577]
[1721312694008,6.2578,159.8,159.7,15.9577]
[1721312694529,6.2574,159.81,159.71,10.0]
[1721312694716,6.2569,159.83,159.71,10.0]
[1721312695021,1.56441847,159.82,159.71,10.0]
[1721312695230,1.56443549,159.84,159.71,10.0]
[1721312695820,6.2583,159.79,159.72,45.0]
[1721312696103,6.2583,159.79,159.71,45.0]
[1721312696303,6.2579,159.8,159.71,45.0]
[1721312696713,1.56465524,159.79,159.71,45.0]
[1721312697026,6.2579,159.8,159.71,45.0]
[1721312697535,1.56470992,159.79,159.71,45.0]
[1721312697732,1.5648614,159.81,159.7,15.9577]
[1721312697916,6.259,159.77,159.7,15.9577]
[1721312698832,6.2587,159.78,159.7,15.9577]
[1721312699031,1.56487312,159.77,159.7,15.9577]
[1721312699233,6.2587,159.78,159.7,15.9577]
[1721312699438,1.56490026,159.77,159.7,15.9577]
[1721312699614,1.56491113,159.79,159.67,10.0]
[1721312699808,1.56491113,159.79,159.68,65.0]
[1721312700331,1.56491113,159.79,159.68,20.0]
[1721312700647,1.56491113,159.79,159.67,20.0]
[1721312700933,6.2591,159.77,159.67,20.0]
[1721312701116,1.56499071,159.76,159.67,20.0]
[1721312701618,1.56499071,159.76,159.66,25.1975]
[1721312701811,1.56499071,159.76,159.67,45.17]
[1721312703127,1.56499071,159.76,159.66,15.1975]
[1721312703319,6.2602,159.74,159.66,15.1975]
[1721312703617,7.82589068,159.73,159.62,10.0]
[1721312703825,7.82589068,159.73,159.62,25.4959]
[1721312704217,6.2609,159.72,159.62,25.4959]
[1721312704438,1.56529068,159.73,159.62,25.4959]
[1721312704439,7.82688032,159.71,159.62,15.4959]
[1721312705033,1.56548032,159.71,159.67,6.2629]
[1721312705248,1.5654723,159.71,159.68,6.2625]
[1721312705549,1.5654723,159.71,159.67,6.2628]
[1721312705722,1.56549237,159.75,159.71,6.261]
[1721312705922,1.56549237,159.75,159.72,6.2606]
[1721312706130,1.56549237,159.75,159.71,6.2612]
[1721312706528,1.56511018,159.76,159.66,10.0]
[1721312706738,1.56511018,159.76,159.67,45.17]
[1721312706955,7.87921357,159.77,159.67,45.17]
[1721312707652,7.82433309,159.76,159.67,45.17]
[1721312708050,1.56493309,159.76,159.67,45.17]
[1721312708255,7.87914694,159.77,159.67,45.17]
[1721312708553,7.87914694,159.77,159.68,10.0]
[1721312708850,6.3142,159.77,159.69,45.0]
[1721312709433,6.3142,159.77,159.7,10.0]
[1721312709656,6.3142,159.77,159.71,45.0]
[1721312710536,6.0368,159.81,159.71,45.0]
[1721312710926,1.56461384,159.8,159.71,45.0]
[1721312711551,6.0368,159.81,159.73,10.0]
[1721312711753,6.0368,159.81,159.74,45.0]
[1721312712057,12.2942,159.81,159.74,45.0]
[1721312712265,6.0368,159.81,159.73,45.0]
[1721312712845,12.2942,159.81,159.73,45.0]
[1721312713052,7.82228237,159.8,159.73,45.0]
[1721312713360,6.2582,159.79,159.72,15.8517]
[1721312713543,7.82228237,159.8,159.71,10.0]
[1721312713748,7.82228237,159.8,159.72,45.0]
[1721312713957,6.2582,159.79,159.72,45.0]
[1721312714260,7.82238237,159.8,159.72,45.0]
[1721312715267,6.2582,159.79,159.72,45.0]
[1721312715640,7.82228237,159.8,159.7,0.17]
[1721312715940,7.82228237,159.8,159.7,45.17]
[1721312716150,6.2582,159.79,159.7,45.17]
[1721312716338,7.82238237,159.8,159.7,45.17]
[1721312716539,6.2582,159.79,159.7,45.17]
[1721312716843,7.82330867,159.78,159.7,45.0]
[1721312717359,1.56470867,159.78,159.7,45.0]
[1721312717666,7.82341656,159.78,159.7,45.0]
[1721312717957,6.259,159.77,159.69,45.0]
[1721312718135,6.2586,159.78,159.69,45.0]
[1721312718338,7.82392327,159.77,159.69,45.0]
[1721312718660,1.56494642,159.76,159.65,10.0]
[1721312718963,6.2597,159.75,159.65,10.0]
[1721312719262,1.56520175,159.74,159.65,10.0]
[1721312720061,1.56520175,159.74,159.7,6.2614]
[1721312720460,1.56520236,159.73,159.69,6.262]
[1721312721341,6.2598,159.75,159.7,6.2616]
[1721312721766,1.56528707,159.74,159.7,6.2616]
[1721312722059,12.9228,159.73,159.64,16.4409]
[1721312722276,1.56539055,159.72,159.68,6.2624]
[1721312723057,7.82629055,159.72,159.68,6.2624]
[1721312723355,7.82639055,159.72,159.67,6.2628]
[1721312724074,7.82639055,159.72,159.62,10.0]
[1721312724075,1.56539055,159.72,159.68,6.2624]
[1721312725050,1.56539055,159.72,159.69,6.262]
[1721312725374,8.22769783,159.73,159.62,10.0]
[1721312725573,8.22769783,159.73,159.7,6.2617]
[1721312725737,6.6622,159.73,159.71,6.2612]
[1721312726173,6.6622,159.73,159.7,6.2616]
[1721312726341,6.6622,159.73,159.65,10.0]
[1721312726676,6.6622,159.73,159.7,6.2614]
[1721312726874,6.6622,159.73,159.71,6.2612]
[1721312727164,6.6622,159.73,159.72,6.2609]
[1721312727638,6.6622,159.73,159.71,6.2612]
[1721312727847,6.6622,159.73,159.7,6.2616]
[1721312728650,6.6622,159.73,159.71,6.2612]
[1721312729638,6.6622,159.73,159.72,6.2609]
[1721312730562,6.6622,159.73,159.71,6.2612]
[1721312731263,6.0456,159.77,159.67,10.0]
[1721312731464,30.17,159.8,159.69,10.0]
[1721312731465,6.2578,159.8,159.69,10.0]
[1721312731759,6.2578,159.8,159.71,10.0]
[1721312731963,22.336,159.81,159.71,10.0]
[1721312732172,22.336,159.81,159.73,10.0]
[1721312732375,6.0456,159.81,159.79,6.2579]
[1721312733974,29.2389,159.85,159.75,10.0]
[1721312734177,29.2389,159.85,159.76,45.17]
[1721312734542,6.2564,159.84,159.76,45.17]
[1721312735550,6.1824,159.89,159.81,10.0]
[1721312735857,6.1824,159.89,159.82,45.17]
[1721312736261,6.1824,159.89,159.82,45.0]
[1721312736572,12.4367,159.89,159.82,45.0]
[1721312736873,6.2547,159.88,159.82,45.0]
[1721312737049,6.2547,159.88,159.79,10.0]
[1721312737249,6.2547,159.88,159.8,45.0]
[1721312737466,7.74610865,159.89,159.8,45.0]
[1721312737467,1.56381399,159.87,159.8,45.0]
[1721312737653,7.81867667,159.88,159.8,45.0]
[1721312737968,6.2554,159.86,159.77,25.6376]
[1721312738175,1.56412796,159.85,159.77,25.6376]
[1721312738344,7.82002796,159.85,159.77,15.6376]
[1721312738545,6.2559,159.85,159.77,15.6376]
[1721312739572,6.2555,159.86,159.77,15.6376]
[1721312739775,1.56415871,159.85,159.77,15.6376]
[1721312740073,6.2551,159.87,159.78,0.50042122]
[1721312740266,6.2547,159.88,159.78,1.00042007]
[1721312740470,1.56401031,159.88,159.79,10.0]
[1721312740647,1.56401031,159.88,159.8,45.99972233]
[1721312740848,1.56401031,159.88,159.8,0.99972233]
[1721312741471,6.1824,159.89,159.8,45.99972233]
[1721312741671,6.1824,159.89,159.81,0.17]
[1721312741966,7.74606134,159.89,159.81,0.99922641]
[1721312742170,14.00036134,159.89,159.81,0.99922641]
[1721312742650,6.1824,159.89,159.82,10.17]
[1721312742968,6.1824,159.89,159.83,0.99899723]
[1721312743563,6.1303,159.93,159.83,45.99899723]
[1721312743881,7.69386351,159.93,159.83,45.99899723]
[1721312744368,6.1303,159.93,159.84,10.17]
[1721312744587,1.56334716,159.97,159.86,10.0]
[1721312744798,1.56334716,159.97,159.87,0.99779375]
[1721312744799,7.69364716,159.97,159.87,0.99779375]
[1721312744968,7.69364716,159.97,159.88,10.17]
[1721312744969,6.1303,159.97,159.88,10.17]
[1721312745163,12.3799,160.01,159.9,10.0]
[1721312745361,1.19068399,160.0,159.91,45.99695682]
[1721312746178,1.56266775,160.0,159.91,45.99695682]
[1721312746488,13.94261108,160.01,159.92,10.0]